bitfinex/quotes_BTCUSD_20250208
["timestamp","ask_amount","ask_price","bid_price","bid_amount"]
[1739036527569,0.50462524,96366.0,96365.0,0.00230878]
[1739036527750,0.49562524,96366.0,96365.0,0.00230878]
[1739036527951,0.50462524,96366.0,96365.0,0.00230878]
[1739036528591,0.49562524,96366.0,96365.0,0.00230878]
[1739036528983,0.51362524,96366.0,96365.0,0.00230878]
[1739036529135,0.50462524,96366.0,96365.0,0.00230878]
[1739036529338,0.62527613,96366.0,96365.0,0.00230878]
[1739036529557,0.4716031,96366.0,96365.0,0.00230878]
[1739036530263,0.45214689,96366.0,96365.0,0.00230878]
[1739036531732,0.45214689,96366.0,96337.0,0.00022407]
[1739036531733,0.01,96358.0,96337.0,0.00022407]
[1739036531892,0.155701,96338.0,96337.0,0.00022407]
[1739036532065,0.00784,96338.0,96337.0,0.00022407]
[1739036532289,0.163541,96338.0,96337.0,0.00022407]
[1739036532494,0.00784,96338.0,96337.0,0.00022407]
[1739036532701,0.155701,96338.0,96337.0,0.12862407]
[1739036533083,0.164701,96338.0,96337.0,0.12862407]
[1739036533291,0.009,96338.0,96337.0,0.12862407]
[1739036533497,0.164701,96338.0,96337.0,0.12862407]
[1739036533701,0.009,96338.0,96337.0,0.12862407]
[1739036533904,0.164701,96338.0,96337.0,0.12862407]
[1739036534108,0.18409516,96338.0,96337.0,0.12862407]
[1739036534686,0.19009516,96338.0,96337.0,0.12862407]
[1739036535000,0.02839416,96338.0,96337.0,0.12862407]
[1739036535384,0.06842095,96338.0,96337.0,0.12862407]
[1739036536851,0.22412195,96338.0,96337.0,0.12862407]
[1739036537031,0.06842095,96338.0,96337.0,0.12862407]
[1739036537835,0.22412195,96338.0,96337.0,0.12862407]
[1739036538041,0.06842095,96338.0,96337.0,0.12862407]
[1739036538732,0.03739416,96338.0,96337.0,0.12862407]
[1739036539359,0.19309516,96338.0,96337.0,0.12862407]
[1739036541059,0.03739416,96338.0,96337.0,0.12862407]
[1739036541254,0.06844692,96338.0,96337.0,0.12862407]
[1739036541454,0.22414792,96338.0,96337.0,0.04872407]
[1739036543778,0.06844692,96338.0,96337.0,0.04872407]
[1739036543976,0.06844692,96338.0,96337.0,0.12712407]
[1739036545008,0.06844692,96338.0,96337.0,0.28282707]
[1739036545206,0.06844692,96338.0,96337.0,0.12712407]
[1739036546192,0.06844692,96338.0,96337.0,0.28282707]
[1739036548035,0.05944692,96338.0,96337.0,0.28282707]
[1739036548254,0.06044692,96338.0,96337.0,0.28282707]
[1739036548443,0.02039416,96338.0,96337.0,0.28282707]
[1739036548843,0.01939416,96338.0,96337.0,0.28282707]
[1739036550560,0.02039416,96338.0,96337.0,0.28282707]
[1739036550970,0.05145763,96338.0,96337.0,0.28282707]
[1739036554914,0.05145763,96338.0,96337.0,0.38533072]
[1739036555482,0.05145763,96338.0,96337.0,0.53533072]
[1739036556075,0.02039416,96338.0,96337.0,0.53533072]
[1739036556491,0.02139416,96338.0,96337.0,0.53633072]
[1739036556701,0.02039416,96338.0,96337.0,0.53633072]
[1739036557043,0.02139416,96338.0,96337.0,0.53633072]
[1739036557243,0.002,96338.0,96337.0,0.53633072]
[1739036557467,0.001,96338.0,96337.0,0.53533072]
[1739036557740,0.002,96338.0,96337.0,0.53633072]
[1739036558528,0.003,96338.0,96337.0,0.53733072]
[1739036558948,0.002,96338.0,96337.0,0.53633072]
[1739036559291,0.003,96338.0,96337.0,0.53733072]
[1739036559867,0.002,96338.0,96337.0,0.53633072]
[1739036560069,0.01939416,96353.0,96352.0,0.231979]
[1739036562196,0.02339416,96353.0,96352.0,0.231979]
[1739036563029,0.02939416,96353.0,96352.0,0.24381501]
[1739036563562,0.01939416,96353.0,96352.0,0.24381501]
[1739036563883,0.01939416,96353.0,96352.0,0.24481501]
[1739036564763,0.01939416,96353.0,96352.0,0.24581501]
[1739036565423,0.01939416,96353.0,96352.0,0.24681501]
[1739036565624,0.01939416,96353.0,96352.0,0.24581501]
[1739036565822,0.01939416,96353.0,96352.0,0.24481501]
[1739036566046,0.01939416,96353.0,96352.0,0.24581501]
[1739036566255,0.01939416,96353.0,96352.0,0.24681501]
[1739036566648,0.01939416,96353.0,96352.0,0.24481501]
[1739036566853,0.01939416,96353.0,96352.0,0.24381501]
[1739036567204,0.01939416,96353.0,96352.0,0.24481501]
[1739036568201,0.01939416,96353.0,96352.0,0.24581501]
[1739036568608,0.01939416,96353.0,96352.0,0.24481501]
[1739036568813,0.01939416,96353.0,96352.0,0.24581501]
[1739036572267,0.01939416,96353.0,96352.0,0.16951501]
[1739036572469,0.01939416,96353.0,96352.0,0.01383601]
[1739036572676,0.05043947,96353.0,96352.0,0.01188643]
[1739036573104,0.05043947,96353.0,96352.0,0.00988643]
[1739036573305,0.05043947,96353.0,96351.0,0.15568]
[1739036573501,0.155671,96357.0,96352.0,0.01267044]
[1739036573997,0.155669,96358.0,96352.0,0.16834844]
[1739036574220,0.155667,96359.0,96352.0,0.16834844]
[1739036574618,7.037e-05,96363.0,96352.0,0.01167044]
[1739036574844,7.037e-05,96363.0,96353.0,0.0763]
[1739036575028,0.05049981,96362.0,96357.0,0.155669]
[1739036575409,0.05049981,96362.0,96353.0,0.0763]
[1739036575614,0.009,96359.0,96356.0,0.155671]
[1739036575858,0.20616281,96362.0,96356.0,0.155671]
[1739036576364,0.05049981,96361.0,96357.0,0.01166803]
[1739036576972,0.009,96359.0,96354.0,0.207567]
[1739036577150,0.009,96359.0,96356.0,0.155672]
[1739036577550,0.05049981,96358.0,96356.0,0.155672]
[1739036578584,0.019423,96357.0,96356.0,0.155672]
[1739036580011,0.019423,96357.0,96356.0,0.1673409]
[1739036580561,0.028423,96357.0,96356.0,0.1673409]
[1739036580970,0.037423,96357.0,96356.0,0.1673409]
[1739036582992,0.018,96357.0,96356.0,0.1673409]
[1739036583198,0.018,96357.0,96356.0,0.2469409]
[1739036584041,0.009,96357.0,96356.0,0.2469409]
[1739036584242,7.037e-05,96363.0,96356.0,0.0912689]
[1739036584448,7.037e-05,96363.0,96362.0,0.155663]
[1739036584889,7.037e-05,96363.0,96362.0,0.16732668]
[1739036585934,0.00907037,96363.0,96362.0,0.16732668]
[1739036586278,0.01807037,96363.0,96362.0,0.16732668]
[1739036587005,0.01787037,96363.0,96362.0,0.16732668]
[1739036587377,0.01787037,96363.0,96362.0,0.16712668]
[1739036588004,0.009,96363.0,96362.0,0.16712668]
[1739036588324,0.0001068,96365.0,96364.0,0.155659]
[1739036588728,0.0001068,96365.0,96364.0,0.16732095]
[1739036589430,0.0091068,96365.0,96364.0,0.16732095]
[1739036589781,0.0091068,96365.0,96364.0,0.29252095]
[1739036590589,0.0181068,96365.0,96364.0,0.29252095]
[1739036590760,0.0091068,96365.0,96364.0,0.29252095]
[1739036591162,0.0181068,96365.0,96364.0,0.29252095]
[1739036591490,0.0001068,96365.0,96364.0,0.29252095]
[1739036591849,0.0091068,96365.0,96364.0,0.29252095]
[1739036592353,0.0271068,96365.0,96364.0,0.29252095]
[1739036592565,0.0269068,96365.0,96364.0,0.29252095]
[1739036592778,0.0177068,96365.0,96364.0,0.29252095]
[1739036593226,0.0267068,96365.0,96364.0,0.29232095]
[1739036593459,0.0267068,96365.0,96364.0,0.29212095]
[1739036593675,0.0265068,96365.0,96364.0,0.29212095]
[1739036593828,0.2075246,96381.0,96372.0,0.155645]
[1739036594037,0.2075246,96381.0,96372.0,0.1919635]
[1739036594252,0.155637,96379.0,96373.0,0.01165024]
[1739036594577,0.155437,96379.0,96373.0,0.01145024]
[1739036595014,0.155643,96374.0,96373.0,0.01125024]
[1739036595430,0.155643,96374.0,96354.0,0.0796]
[1739036595644,0.077,96378.0,96355.0,0.02185516]
[1739036595880,0.077,96378.0,96357.0,0.15567]
[1739036596121,0.155664,96362.0,96355.0,0.01163255]
[1739036596337,0.155664,96361.0,96355.0,0.01163255]
[1739036596534,0.155664,96361.0,96352.0,0.20779428]
[1739036596691,0.155667,96360.0,96352.0,0.00022428]
[1739036597092,0.155663,96362.0,96353.0,0.155677]
[1739036597277,0.155663,96362.0,96352.0,0.00022428]
[1739036597278,0.155661,96364.0,96352.0,0.00022428]
[1739036597476,0.155661,96364.0,96352.0,0.20779428]
[1739036597477,0.01944177,96363.0,96352.0,0.20779428]
[1739036597737,0.01924177,96363.0,96354.0,0.156674]
[1739036597899,0.01924177,96363.0,96354.0,0.001]
[1739036598115,0.155663,96362.0,96355.0,0.01030291]
[1739036598324,0.155663,96362.0,96353.0,0.05349723]
[1739036598501,0.155663,96362.0,96353.0,0.04949723]
[1739036598702,0.155663,96362.0,96354.0,0.02739058]
[1739036599188,0.164663,96362.0,96355.0,0.001]
[1739036599375,0.009,96362.0,96355.0,0.001]
[1739036599918,0.009,96362.0,96356.0,0.01030179]
[1739036600491,0.155665,96361.0,96356.0,0.01030179]
[1739036600729,0.006,96363.0,96356.0,0.01030179]
[1739036600935,0.009,96362.0,96356.0,0.01030179]
[1739036601359,0.173663,96362.0,96356.0,0.0332115]
[1739036601497,0.018,96362.0,96356.0,0.02290971]
[1739036601701,0.018,96362.0,96357.0,0.16597186]
[1739036601904,0.009,96361.0,96357.0,0.155671]
[1739036602135,0.009,96361.0,96358.0,0.01030012]
[1739036602541,0.018,96361.0,96358.0,0.01030012]
[1739036603479,0.018,96361.0,96356.0,0.157672]
[1739036603709,0.009,96361.0,96359.0,0.01030206]
[1739036603880,0.1557678,96364.0,96358.0,0.155668]
[1739036604183,0.0088,96361.0,96360.0,0.01030131]
[1739036604383,0.1557678,96364.0,96359.0,0.01030215]
[1739036604719,0.009,96361.0,96360.0,0.03745323]
[1739036604850,0.009,96361.0,96359.0,0.01030215]
[1739036605054,0.009,96361.0,96358.0,0.001]
[1739036605266,0.155662,96363.0,96360.0,0.0103014]
[1739036605472,0.0181068,96364.0,96360.0,0.0103014]
[1739036605845,0.0181068,96364.0,96359.0,0.002]
[1739036605846,0.155666,96360.0,96359.0,0.002]
[1739036606832,0.155666,96360.0,96359.0,0.001]
[1739036607038,0.15567,96358.0,96350.0,0.155681]
[1739036607242,0.15567,96358.0,96351.0,0.155679]
[1739036607922,0.15567,96358.0,96352.0,0.15590228]
[1739036608197,0.216555,96360.0,96352.0,0.00022428]
[1739036608402,0.155671,96357.0,96352.0,0.00022428]
[1739036608797,0.216555,96360.0,96353.0,0.0103065]
[1739036608992,0.207557,96359.0,96353.0,0.0103065]
[1739036609189,0.009,96358.0,96353.0,0.0103065]
[1739036609519,0.009,96358.0,96352.0,0.15690228]
[1739036609723,0.01943889,96357.0,96352.0,0.15670228]
[1739036610121,0.01943889,96357.0,96352.0,0.15770228]
[1739036610523,0.01943889,96357.0,96352.0,0.15670228]
[1739036610727,0.01943889,96357.0,96353.0,0.001]
[1739036610933,0.01943889,96356.0,96353.0,0.001]
[1739036611135,0.01923889,96356.0,96353.0,0.001]
[1739036611342,0.01923889,96356.0,96352.0,0.00102428]
[1739036611649,0.01923889,96356.0,96353.0,0.155677]
[1739036611978,0.164672,96357.0,96352.0,0.00102428]
[1739036612180,0.00784,96361.0,96353.0,0.01030761]
[1739036612439,0.15567,96358.0,96353.0,0.01030761]
[1739036612584,0.009,96356.0,96353.0,0.01030761]
[1739036613241,0.018,96356.0,96353.0,0.01130761]
[1739036613663,0.009,96356.0,96353.0,0.01130761]
[1739036614724,0.018,96356.0,96353.0,0.01230761]
[1739036615164,0.215392,96361.0,96353.0,0.01030761]
[1739036615367,0.00784,96361.0,96353.0,0.01030761]
[1739036615540,0.164673,96356.0,96353.0,0.01130761]
[1739036615746,0.164673,96356.0,96353.0,0.001]
[1739036615948,0.164673,96356.0,96354.0,0.01340072]
[1739036616173,0.03512026,96356.0,96354.0,0.01340072]
[1739036616374,0.155674,96355.0,96354.0,0.01340072]
[1739036616572,0.155675,96354.0,96353.0,0.001]
[1739036616774,0.000178,96356.0,96344.0,0.04542428]
[1739036616975,0.155681,96351.0,96344.0,0.04542428]
[1739036617139,0.155681,96351.0,96345.0,0.01208714]
[1739036617340,0.155679,96353.0,96345.0,0.01208714]
[1739036617538,0.009178,96356.0,96345.0,0.01208714]
[1739036617871,0.155678,96353.0,96345.0,0.01208714]
[1739036618554,0.003,96353.0,96345.0,0.01208714]
[1739036619719,0.003,96353.0,96345.0,0.16777714]
[1739036620351,0.011,96353.0,96345.0,0.16777714]
[1739036620760,0.155674,96355.0,96345.0,0.16777714]
[1739036621095,0.008,96353.0,96345.0,0.16877714]
[1739036621312,0.017,96353.0,96345.0,0.16777714]
[1739036621724,0.017,96353.0,96345.0,0.16877714]
[1739036622031,0.009,96353.0,96345.0,0.01208714]
[1739036622237,0.017,96353.0,96345.0,0.01308714]
[1739036622608,0.017,96353.0,96345.0,0.16877614]
[1739036623612,0.155675,96355.0,96345.0,0.16777614]
[1739036623906,0.000178,96356.0,96345.0,0.01308714]
[1739036623907,0.01944353,96352.0,96345.0,0.01308714]
[1739036624111,0.01944353,96352.0,96345.0,0.16877714]
[1739036624490,0.01944353,96352.0,96345.0,0.17000142]
[1739036624668,0.01944353,96352.0,96345.0,0.16800142]
[1739036624875,0.01944353,96351.0,96345.0,0.16800142]
[1739036625071,0.01944353,96351.0,96345.0,0.16900142]
[1739036625473,0.01944353,96351.0,96345.0,0.01331142]
[1739036625921,0.01944353,96350.0,96345.0,0.01331142]
[1739036626648,0.04089733,96349.0,96345.0,0.01231142]
[1739036626820,0.155688,96346.0,96345.0,0.01231142]
[1739036626965,0.155688,96346.0,96345.0,0.01331142]
[1739036627165,0.155688,96346.0,96345.0,0.01238179]
[1739036627471,0.155688,96346.0,96345.0,0.00129465]
[1739036627980,0.17513153,96346.0,96345.0,0.00129465]
[1739036628587,0.18413153,96346.0,96345.0,0.00229465]
[1739036629271,0.02844353,96346.0,96345.0,0.00229465]
[1739036629537,0.19313153,96346.0,96345.0,0.00229465]
[1739036633652,0.20349808,96346.0,96345.0,0.00229465]
[1739036635327,0.01370747,96346.0,96345.0,0.00229465]
[1739036635532,0.16939547,96346.0,96345.0,0.00229465]
[1739036639476,0.16605455,96346.0,96345.0,0.00029465]
[1739036639924,0.18305455,96346.0,96345.0,0.00229465]
[1739036640363,0.2141583,96346.0,96345.0,0.00229465]
[1739036640695,0.2061583,96346.0,96345.0,0.00129465]
[1739036640915,0.2141583,96346.0,96345.0,0.00229465]
[1739036641464,0.2051583,96346.0,96345.0,0.00129465]
[1739036641674,0.2141583,96346.0,96345.0,0.00129465]
[1739036642236,0.33480919,96346.0,96345.0,0.00129465]
[1739036642883,0.16875464,96346.0,96345.0,0.00129465]
[1739036643040,0.16875464,96346.0,96345.0,0.07979465]
[1739036643496,0.16875464,96346.0,96345.0,0.09579843]
[1739036644158,0.17659464,96346.0,96345.0,0.09579843]
[1739036644356,0.16875464,96346.0,96345.0,0.09579843]
[1739036644831,0.13765089,96346.0,96345.0,0.09579843]
[1739036645004,0.13765089,96346.0,96345.0,0.14439843]
[1739036645249,0.13765089,96346.0,96345.0,0.30008843]
[1739036645648,0.13765089,96346.0,96345.0,0.14439843]
[1739036647877,0.13765089,96346.0,96345.0,0.30008843]
[1739036648229,0.017,96346.0,96345.0,0.14439843]
[1739036649146,0.0171068,96346.0,96345.0,0.14439843]
[1739036650313,0.0171068,96346.0,96345.0,0.35188823]
[1739036651706,0.0171068,96346.0,96345.0,0.19619823]
[1739036652295,0.0171068,96346.0,96345.0,0.14439843]
[1739036652607,0.03655675,96346.0,96345.0,0.14439843]
[1739036653930,0.03655675,96346.0,96345.0,0.12839465]
[1739036654344,0.19224475,96346.0,96345.0,0.01729479]
[1739036654540,0.25299591,96346.0,96345.0,0.01729479]
[1739036654742,0.19224475,96346.0,96345.0,0.00129465]
[1739036655526,0.18324475,96346.0,96345.0,0.00129465]
[1739036655727,0.19224475,96346.0,96345.0,0.00129465]
[1739036656114,0.18424475,96346.0,96345.0,0.00029465]
[1739036656669,0.19324475,96346.0,96345.0,0.00029465]
[1739036657031,0.20224475,96346.0,96345.0,0.00029465]
[1739036657438,0.19324475,96346.0,96345.0,0.00029465]
[1739036657810,0.17524475,96346.0,96345.0,0.00029465]
[1739036658123,0.18424475,96346.0,96345.0,0.00029465]
[1739036658929,0.19324475,96346.0,96345.0,0.00029465]
[1739036659350,0.18424475,96346.0,96345.0,0.00029465]
[1739036659932,0.19324475,96346.0,96345.0,0.00029465]
[1739036660266,0.20224475,96346.0,96345.0,0.00029465]
[1739036660777,0.19324475,96346.0,96345.0,0.00029465]
[1739036661054,0.17524475,96346.0,96345.0,0.00029465]
[1739036661444,0.18424475,96346.0,96345.0,0.00029465]
[1739036661857,0.02855675,96346.0,96345.0,0.07969465]
[1739036662078,0.03755675,96346.0,96345.0,0.07969465]
[1739036662269,0.03755675,96346.0,96345.0,0.09569479]
[1739036662416,0.0181068,96346.0,96345.0,0.09569479]
[1739036664094,0.0091068,96346.0,96345.0,0.09569479]
[1739036664408,0.0181068,96346.0,96345.0,0.09569479]
[1739036664624,0.0091068,96346.0,96345.0,0.09569479]
[1739036665141,0.02856311,96346.0,96345.0,0.09569479]
[1739036665998,0.03756311,96346.0,96345.0,0.09569479]
[1739036666208,0.0181068,96346.0,96345.0,0.09569479]
[1739036666441,0.0181068,96346.0,96345.0,0.14189479]
[1739036667365,0.0181068,96346.0,96345.0,0.29758479]
[1739036667991,0.0181068,96346.0,96345.0,0.14189479]
[1739036668521,0.0181068,96346.0,96345.0,0.29758479]
[1739036668758,0.0181068,96346.0,96345.0,0.14189479]
[1739036674738,0.01830749,96346.0,96345.0,0.14189479]
[1739036676343,0.01830749,96346.0,96345.0,0.06249479]
[1739036676716,0.17399549,96346.0,96345.0,0.01629479]
[1739036676926,0.23370532,96346.0,96345.0,0.01629479]
[1739036677134,0.17399549,96346.0,96345.0,0.00029465]
[1739036681179,0.17399549,96346.0,96345.0,0.0145583]
[1739036681506,0.17399549,96346.0,96345.0,0.00029465]
[1739036682725,0.15599549,96346.0,96345.0,0.00029465]
[1739036683165,0.17399549,96346.0,96345.0,0.00029465]
[1739036683707,0.18299549,96346.0,96345.0,0.00029465]
[1739036683910,0.20245547,96346.0,96345.0,0.00029465]
[1739036684424,0.19345547,96346.0,96345.0,0.00029465]
[1739036684799,0.20245547,96346.0,96345.0,0.00029465]
[1739036685502,0.18445547,96346.0,96345.0,0.00029465]
[1739036685723,0.19345547,96346.0,96345.0,0.00029465]
[1739036686181,0.18445547,96346.0,96345.0,0.00029465]
[1739036686345,0.19345547,96346.0,96345.0,0.00029465]
[1739036691625,0.03776747,96346.0,96345.0,0.00029465]
[1739036691855,0.01830749,96346.0,96345.0,0.00029465]
[1739036692462,0.00930749,96346.0,96345.0,0.00029465]
[1739036692665,0.00030749,96346.0,96345.0,0.00029465]
[1739036693080,0.00930749,96346.0,96345.0,0.00029465]
[1739036693576,0.16499549,96346.0,96345.0,0.00029465]
[1739036694302,0.00930749,96346.0,96345.0,0.00029465]
[1739036694607,0.01830749,96346.0,96345.0,0.00029465]
[1739036699009,0.17399549,96346.0,96345.0,0.00029465]
[1739036702936,0.1844602,96346.0,96345.0,0.00029465]
[1739036703487,0.1754602,96346.0,96345.0,0.00029465]
[1739036703720,0.1844602,96346.0,96345.0,0.00029465]
[1739036704698,0.1934602,96346.0,96345.0,0.00029465]
[1739036705443,0.17399549,96346.0,96345.0,0.00029465]
[1739036706655,0.16499549,96346.0,96345.0,0.00029465]
[1739036706964,0.17399549,96346.0,96345.0,0.00029465]
[1739036707169,0.16499549,96346.0,96345.0,0.00029465]
[1739036707370,0.17399549,96346.0,96345.0,0.00029465]
[1739036707573,0.16499549,96346.0,96345.0,0.00029465]
[1739036707753,0.29464638,96346.0,96345.0,0.00029465]
[1739036711294,0.28564638,96346.0,96345.0,0.00029465]
[1739036711580,0.29464638,96346.0,96345.0,0.00029465]
[1739036712204,0.28564638,96346.0,96345.0,0.00029465]
[1739036712511,0.29464638,96346.0,96345.0,0.00029465]
[1739036713070,0.39029811,96346.0,96345.0,0.00029465]
[1739036713793,0.29464638,96346.0,96345.0,0.00029465]
[1739036717327,0.3050992,96346.0,96345.0,0.00029465]
[1739036717740,0.3140992,96346.0,96345.0,0.00029465]
[1739036718696,0.3050992,96346.0,96345.0,0.00029465]
[1739036719477,0.58060285,96346.0,96345.0,0.00029465]
[1739036719678,0.7609065,96346.0,96345.0,0.00029465]
[1739036719894,0.7699065,96346.0,96345.0,0.00029465]
[1739036720362,0.7609065,96346.0,96345.0,0.00029465]
[1739036720704,0.7699065,96346.0,96345.0,0.00029465]
[1739036721104,0.64925561,96346.0,96345.0,0.00029465]
[1739036721334,0.155701,96338.0,96337.0,0.00017797]
[1739036721560,0.36135285,96338.0,96337.0,0.00017797]
[1739036722691,0.37035285,96338.0,96337.0,0.00017797]
[1739036722831,0.25820465,96338.0,96337.0,0.00017797]
[1739036723048,0.30877923,96338.0,96337.0,0.00017797]
[1739036723236,0.31777923,96338.0,96337.0,0.00017797]
[1739036723886,0.32677923,96338.0,96337.0,0.00017797]
[1739036724870,0.31777923,96338.0,96337.0,0.00017797]
[1739036725077,0.42083525,96338.0,96337.0,0.00017797]
[1739036725281,0.41183525,96338.0,96337.0,0.00017797]
[1739036725604,0.42083525,96338.0,96337.0,0.00017797]
[1739036725806,0.43095845,96338.0,96337.0,0.00017797]
[1739036726211,0.34590243,96338.0,96337.0,0.00017797]
[1739036726600,0.33690243,96338.0,96337.0,0.00017797]
[1739036728042,0.30578067,96338.0,96337.0,0.00017797]
[1739036728244,0.31478067,96338.0,96337.0,0.00017797]
[1739036729867,0.20215382,96338.0,96337.0,0.00017797]
[1739036730063,0.20999382,96338.0,96337.0,0.00017797]
[1739036731065,0.2932713,96338.0,96337.0,0.00017797]
[1739036731271,0.2842713,96338.0,96337.0,0.00017797]
[1739036731464,0.2932713,96338.0,96337.0,0.00017797]
[1739036731717,0.04645282,96338.0,96337.0,0.15588097]
[1739036731936,0.04645282,96338.0,96337.0,0.23518097]
[1739036732122,0.03745282,96338.0,96337.0,0.23518097]
[1739036732324,0.01945282,96338.0,96337.0,0.28398097]
[1739036732492,0.03745282,96338.0,96337.0,0.28398097]
[1739036732896,0.01945282,96338.0,96337.0,0.28398097]
[1739036733267,0.03145282,96338.0,96337.0,0.28398097]
[1739036735494,0.03145282,96338.0,96337.0,0.39677964]
[1739036736226,0.003,96338.0,96337.0,0.39677964]
[1739036736465,0.003,96338.0,96337.0,0.39777964]
[1739036737064,0.003,96338.0,96337.0,0.39677964]
[1739036737705,0.00040604,96346.0,96345.0,0.15569]
[1739036737908,0.00040604,96346.0,96345.0,0.23499]
[1739036738342,0.01982948,96346.0,96345.0,0.23499]
[1739036739257,0.02882948,96346.0,96345.0,0.23499]
[1739036739458,0.03782948,96346.0,96345.0,0.23499]
[1739036739965,0.02882948,96346.0,96345.0,0.23499]
[1739036740197,0.03782948,96346.0,96345.0,0.23499]
[1739036740754,0.00940604,96346.0,96345.0,0.23499]
[1739036741204,0.01840604,96346.0,96345.0,0.23499]
[1739036741463,0.00940604,96346.0,96345.0,0.23499]
[1739036741611,0.00040604,96346.0,96345.0,0.24743896]
[1739036741813,0.01840604,96346.0,96345.0,0.24743896]
[1739036742018,0.00940604,96346.0,96345.0,0.24743896]
[1739036742616,0.01840604,96346.0,96345.0,0.24743896]
[1739036743245,0.00940604,96346.0,96345.0,0.24743896]
[1739036743797,0.01840604,96346.0,96345.0,0.24743896]
[1739036744381,0.00940604,96346.0,96345.0,0.24743896]
[1739036744724,0.00940604,96346.0,96345.0,0.29473896]
[1739036745129,0.01840604,96346.0,96345.0,0.29473896]
[1739036745898,0.00940604,96346.0,96345.0,0.29473896]
[1739036746187,0.0001068,96364.0,96347.0,0.415166]
[1739036746420,0.1557678,96364.0,96357.0,0.0789]
[1739036746823,0.0001068,96364.0,96359.0,0.0473]
[1739036747024,0.0001068,96364.0,96360.0,0.155665]
[1739036747225,0.0001068,96364.0,96360.0,0.01242223]
[1739036747844,0.0091068,96364.0,96360.0,0.01242223]
[1739036748200,0.0181068,96364.0,96360.0,0.01242223]
[1739036748410,0.0271068,96364.0,96360.0,0.01242223]
[1739036748596,0.0181068,96364.0,96360.0,0.01242223]
[1739036748919,0.0271068,96364.0,96360.0,0.01342223]
[1739036749505,0.155662,96363.0,96360.0,0.01342223]
[1739036749905,0.155662,96363.0,96360.0,0.001]
[1739036750326,0.155662,96363.0,96361.0,0.01242087]
[1739036750853,0.0091068,96364.0,96361.0,0.01242087]
[1739036750992,0.009,96363.0,96361.0,0.01242087]
[1739036751440,0.018,96363.0,96361.0,0.01342087]
[1739036751641,0.018,96363.0,96362.0,0.02952899]
[1739036751832,0.027,96363.0,96362.0,0.04194849]
[1739036752454,0.018,96363.0,96362.0,0.04194849]
[1739036752659,0.027,96363.0,96362.0,0.04194849]
[1739036753129,0.018,96363.0,96362.0,0.04194849]
[1739036753680,0.164661,96363.0,96362.0,0.0134195]
[1739036754116,0.009,96363.0,96362.0,0.0134195]
[1739036754270,0.018,96363.0,96362.0,0.0144195]
[1739036754878,0.173661,96363.0,96362.0,0.0144195]
[1739036755992,0.018,96363.0,96362.0,0.0144195]
[1739036756593,0.173661,96363.0,96362.0,0.0144195]
[1739036757208,0.173661,96363.0,96362.0,0.06480475]
[1739036757404,0.173661,96363.0,96362.0,0.0144195]
[1739036759331,0.018,96363.0,96362.0,0.0144195]
[1739036760906,0.018,96363.0,96362.0,0.1700825]
[1739036761501,0.018,96363.0,96362.0,0.0144195]
[1739036763955,0.018,96363.0,96362.0,0.1700825]
[1739036764390,0.018,96363.0,96362.0,0.0144195]
[1739036766084,0.018,96363.0,96362.0,0.01464378]
[1739036766309,0.0181068,96363.0,96362.0,0.01464378]
[1739036766749,0.0181068,96363.0,96362.0,0.17030678]
[1739036767532,0.0091068,96363.0,96362.0,0.16930678]
[1739036767815,0.0001068,96363.0,96362.0,0.16830678]
[1739036768062,0.0091068,96363.0,96362.0,0.24870678]
[1739036768244,0.0181068,96363.0,96362.0,0.24970678]
[1739036771972,0.0181068,96363.0,96362.0,0.25993883]
[1739036772580,0.155651,96369.0,96363.0,0.155661]
[1739036772957,0.20753,96372.0,96364.0,0.01241755]
[1739036773236,0.155649,96371.0,96364.0,0.16807655]
[1739036773574,0.155651,96370.0,96364.0,0.01241755]
[1739036774045,0.018,96369.0,96363.0,0.002]
[1739036774208,0.018,96369.0,96365.0,0.01241618]
[1739036774359,0.009,96369.0,96364.0,0.01241755]
[1739036774562,0.164652,96369.0,96364.0,0.001]
[1739036774770,0.164652,96369.0,96365.0,0.01241618]
[1739036776153,0.009,96369.0,96365.0,0.01241618]
[1739036776619,0.15565,96370.0,96365.0,0.01241618]
[1739036776819,0.002,96369.0,96365.0,0.01241618]
[1739036777263,0.001,96369.0,96365.0,0.16807318]
[1739036777466,0.002,96369.0,96365.0,0.22095918]
[1739036777667,0.003,96369.0,96368.0,0.155653]
[1739036777940,0.003,96369.0,96368.0,0.29536522]
[1739036778488,0.002,96369.0,96368.0,0.29536522]
[1739036779536,0.0001221,96374.0,96373.0,0.155645]
[1739036780920,0.0001221,96374.0,96373.0,0.156645]
[1739036781258,0.0091221,96374.0,96373.0,0.156645]
[1739036781465,0.0181221,96374.0,96373.0,0.157645]
[1739036781620,0.0181221,96374.0,96373.0,0.16756923]
[1739036782956,0.0181221,96374.0,96373.0,0.19834941]
[1739036783629,0.0181221,96374.0,96373.0,0.27984941]
[1739036788012,0.0181221,96374.0,96373.0,0.12420441]
[1739036788165,0.0181221,96374.0,96373.0,0.27984941]
[1739036793150,0.0181221,96374.0,96373.0,0.24906923]
[1739036793334,0.0181221,96374.0,96373.0,0.16756923]
[1739036803837,0.0181221,96374.0,96373.0,0.01192423]
[1739036804257,0.0181221,96374.0,96373.0,0.16756923]
[1739036805012,0.0181221,96374.0,96373.0,0.1677933]
[1739036805220,0.0182288,96374.0,96373.0,0.0121483]
[1739036805668,0.0182288,96374.0,96373.0,0.1677933]
[1739036805906,0.0182288,96374.0,96373.0,0.0121483]
[1739036806494,0.0182288,96374.0,96373.0,0.00222407]
[1739036809797,0.0182288,96374.0,96373.0,0.15786907]
[1739036810054,0.0182288,96374.0,96373.0,0.16821802]
[1739036810518,0.0182288,96374.0,96373.0,0.01257302]
[1739036814193,0.0182288,96374.0,96373.0,0.16821802]
[1739036817183,0.0182288,96374.0,96373.0,0.29261802]
[1739036834152,0.0182288,96374.0,96373.0,0.05897302]
[1739036834354,0.0182288,96374.0,96373.0,0.01257302]
[1739036836451,0.0182288,96374.0,96373.0,0.16821802]
[1739036837057,0.0182288,96374.0,96373.0,0.01257302]
[1739036837534,0.0182288,96374.0,96373.0,0.23542882]
[1739036838634,0.0182288,96374.0,96373.0,0.21331802]
[1739036839796,0.0182288,96374.0,96373.0,0.22360431]
[1739036840765,0.0182288,96374.0,96373.0,0.21331802]
[1739036842588,0.0182288,96374.0,96373.0,0.29191802]
[1739036843362,0.0002288,96374.0,96373.0,0.28991802]
[1739036843527,0.0002288,96374.0,96373.0,0.39242167]
[1739036843692,0.0182288,96374.0,96373.0,0.39442167]
[1739036844120,0.0092288,96374.0,96373.0,0.39342167]
[1739036844331,0.0092288,96374.0,96373.0,0.39642167]
[1739036844733,0.0092288,96374.0,96373.0,0.39342167]